bitfinex/quotes_SOLUSD_20250108
["timestamp","ask_amount","ask_price","bid_price","bid_amount"]
[1736372599905,25.15667693,195.65,195.6,46.06]
[1736372600614,25.15667693,195.64,195.6,46.06]
[1736372600805,25.15667693,195.65,195.6,46.06]
[1736372600996,25.15667693,195.63,195.6,46.06]
[1736372601195,25.15667693,195.64,195.6,46.06]
[1736372601608,25.15667693,195.65,195.6,46.06]
[1736372601918,25.15667693,195.64,195.6,46.06]
[1736372602103,25.15667693,195.63,195.6,46.06]
[1736372602997,25.15667693,195.64,195.6,46.06]
[1736372603197,25.15667693,195.65,195.6,46.06]
[1736372603398,25.15667693,195.64,195.6,46.06]
[1736372603594,25.15667693,195.63,195.6,46.06]
[1736372603814,25.15667693,195.61,195.6,46.06]
[1736372604913,25.15667693,195.62,195.6,46.06]
[1736372605923,25.15667693,195.64,195.6,46.06]
[1736372606098,8.62351757,195.74,195.6,25.15667693]
[1736372606303,25.15667693,195.66,195.59,25.15667693]
[1736372606504,25.15667693,195.66,195.6,2.48]
[1736372607127,25.15667693,195.65,195.6,2.48]
[1736372607525,25.15667693,195.66,195.6,2.48]
[1736372607698,25.15667693,195.67,195.6,2.48]
[1736372607904,25.15667693,195.66,195.6,2.48]
[1736372608105,25.15667693,195.66,195.59,25.15667693]
[1736372608106,25.15667693,195.65,195.58,45.15667693]
[1736372608399,25.15667693,195.7,195.54,20.4896]
[1736372608400,25.15667693,195.6,195.54,7.7046]
[1736372608603,25.15667693,195.58,195.54,7.7046]
[1736372608799,25.15667693,195.57,195.54,7.7046]
[1736372610130,25.15667693,195.58,195.54,7.7046]
[1736372610428,25.15667693,195.6,195.54,32.86127693]
[1736372610930,25.15667693,195.6,195.54,7.7046]
[1736372611917,25.15667693,195.59,195.54,7.7046]
[1736372613231,25.15667693,195.6,195.54,7.7046]
[1736372613933,25.15667693,195.59,195.54,7.7046]
[1736372614134,25.15667693,195.59,195.49,12.7877]
[1736372614135,25.15667693,195.55,195.49,8.2313]
[1736372614434,25.15667693,195.52,195.49,8.2313]
[1736372614933,25.15667693,195.54,195.49,8.2313]
[1736372615140,25.15667693,195.55,195.49,8.2313]
[1736372615431,1.5057,195.64,195.49,33.38797693]
[1736372615432,25.15667693,195.56,195.49,33.38797693]
[1736372615732,25.15667693,195.58,195.51,25.15667693]
[1736372616035,25.15667693,195.58,195.52,25.15667693]
[1736372616219,25.15667693,195.58,195.51,25.15667693]
[1736372616605,25.15667693,195.58,195.52,25.15667693]
[1736372616827,25.15667693,195.56,195.49,33.38797693]
[1736372617206,25.15667693,195.57,195.5,25.15667693]
[1736372617610,25.15667693,195.54,195.49,8.2313]
[1736372618007,25.15667693,195.53,195.49,8.2313]
[1736372618202,25.15667693,195.52,195.49,8.2313]
[1736372618512,2.48,195.59,195.49,8.2313]
[1736372618513,25.15667693,195.51,195.49,8.2313]
[1736372619120,25.15667693,195.51,195.48,46.06]
[1736372619121,25.15667693,195.5,195.44,7.941]
[1736372619435,25.15667693,195.47,195.44,7.941]
[1736372619734,25.15667693,195.46,195.44,7.941]
[1736372620234,25.15667693,195.45,195.39,1.6471]
[1736372620422,25.15667693,195.44,195.39,1.6471]
[1736372620811,24.15667693,195.44,195.39,1.6471]
[1736372621011,25.15667693,195.46,195.39,26.80377693]
[1736372621235,25.15667693,195.45,195.39,1.6471]
[1736372622222,25.15667693,195.44,195.39,1.6471]
[1736372622421,27.63667693,195.5,195.39,1.6471]
[1736372622422,25.15667693,195.42,195.39,1.6471]
[1736372622625,25.15667693,195.41,195.39,1.6471]
[1736372622831,25.15667693,195.4,195.34,1.6471]
[1736372623024,25.15667693,195.38,195.34,1.6471]
[1736372623838,25.15667693,195.44,195.37,25.15667693]
[1736372624039,25.15667693,195.46,195.39,25.15667693]
[1736372624240,7.02295686,195.54,195.36,45.15667693]
[1736372624241,25.15667693,195.5,195.36,45.15667693]
[1736372624445,20.0,195.46,195.35,2.48]
[1736372625547,23.776884,195.49,195.35,2.48]
[1736372625842,25.15667693,195.4,195.34,1.6471]
[1736372626215,25.15667693,195.4,195.34,26.80377693]
[1736372626915,25.15667693,195.4,195.34,1.6471]
[1736372627427,25.15667693,195.41,195.34,26.80377693]
[1736372627656,25.15667693,195.43,195.36,25.15667693]
[1736372627944,25.15667693,195.42,195.35,25.15667693]
[1736372628330,25.15667693,195.38,195.34,1.6471]
[1736372629027,25.15667693,195.42,195.35,25.15667693]
[1736372629636,25.15667693,195.42,195.36,25.15667693]
[1736372631032,25.15667693,195.42,195.35,25.15667693]
[1736372631340,25.15667693,195.4,195.34,26.80377693]
[1736372631840,25.15667693,195.41,195.34,26.80377693]
[1736372632020,25.15667693,195.4,195.34,26.80377693]
[1736372632224,25.15667693,195.41,195.34,26.80377693]
[1736372633344,15.74514051,195.41,195.34,17.39224051]
[1736372633641,15.74514051,195.44,195.37,15.74514051]
[1736372633950,15.74514051,195.45,195.38,15.74514051]
[1736372634643,15.74514051,195.44,195.37,15.74514051]
[1736372634834,15.74514051,195.45,195.38,35.74514051]
[1736372635045,15.74514051,195.44,195.38,20.0]
[1736372637618,15.74514051,195.45,195.38,35.74514051]
[1736372638448,4.127,195.58,195.44,15.74514051]
[1736372638645,15.74514051,195.53,195.46,15.74514051]
[1736372640147,15.74514051,195.52,195.45,15.74514051]
[1736372640550,15.74514051,195.52,195.46,15.74514051]
[1736372640932,15.74514051,195.52,195.45,15.74514051]
[1736372643025,15.74514051,195.5,195.44,18.22514051]
[1736372643225,15.74514051,195.49,195.42,26.23154051]
[1736372643426,15.74514051,195.46,195.42,8.0064]
[1736372643630,15.74514051,195.46,195.4,2.48]
[1736372643631,15.74514051,195.43,195.37,7.65]
[1736372643946,15.74514051,195.42,195.37,7.65]
[1736372644162,15.74514051,195.41,195.37,7.65]
[1736372644365,23.776884,195.49,195.37,7.65]
[1736372644366,15.74514051,195.39,195.37,7.65]
[1736372644939,15.74514051,195.38,195.37,7.65]
[1736372645242,15.74514051,195.4,195.37,1.5736]
[1736372645436,25.19419981,195.41,195.37,1.5736]
[1736372646649,25.19419981,195.42,195.37,1.5736]
[1736372647028,25.19419981,195.44,195.37,26.76779981]
[1736372647222,25.19419981,195.5,195.37,26.76779981]
[1736372647223,25.19419981,195.45,195.38,25.19419981]
[1736372649260,25.19419981,195.45,195.37,1.5736]
[1736372649261,25.19419981,195.44,195.37,26.76779981]
[1736372650455,25.19419981,195.45,195.38,25.19419981]
[1736372650652,27.67419981,195.5,195.42,25.19419981]
[1736372650653,25.19419981,195.5,195.42,25.19419981]
[1736372650859,25.19419981,195.52,195.45,25.19419981]
[1736372651671,25.19419981,195.53,195.46,25.19419981]
[1736372651861,25.19419981,195.51,195.46,2.48]
[1736372652378,25.19419981,195.54,195.47,25.19419981]
[1736372652578,25.19419981,195.55,195.47,25.19419981]
[1736372652876,25.19419981,195.55,195.48,25.19419981]
[1736372653070,25.19419981,195.55,195.47,25.19419981]
[1736372653440,25.19419981,195.54,195.47,25.19419981]
[1736372654637,25.19419981,195.55,195.47,25.19419981]
[1736372655045,25.19419981,195.54,195.47,25.19419981]
[1736372655661,25.19419981,195.55,195.47,25.19419981]
[1736372656259,25.19419981,195.55,195.48,25.19419981]
[1736372656475,25.19419981,195.56,195.49,25.19419981]
[1736372657076,25.19419981,195.61,195.54,25.19419981]
[1736372657379,25.19419981,195.6,195.54,2.48]
[1736372657955,12.90754873,195.68,195.54,2.48]
[1736372657956,25.19419981,195.61,195.54,27.67419981]
[1736372658144,1.6434,195.69,195.55,26.74309981]
[1736372658145,25.19419981,195.62,195.55,26.74309981]
[1736372658754,25.19419981,195.63,195.55,26.74309981]
[1736372659140,25.19419981,195.64,195.57,25.19419981]
[1736372659386,25.19419981,195.67,195.6,25.19419981]
[1736372659599,25.19419981,195.67,195.61,2.48]
[1736372661371,25.19419981,195.69,195.61,27.67419981]
[1736372661673,25.19419981,195.73,195.66,25.19419981]
[1736372662062,25.19419981,195.72,195.65,25.19419981]
[1736372662567,25.19419981,195.71,195.64,26.73559981]
[1736372662772,25.19419981,195.66,195.59,33.44939981]
[1736372662951,22.48,195.73,195.59,33.44939981]
[1736372662952,25.19419981,195.65,195.59,8.2552]
[1736372664247,25.19419981,195.66,195.6,25.19419981]
[1736372664449,25.19419981,195.68,195.61,25.19419981]
[1736372664669,25.19419981,195.66,195.59,33.44939981]
[1736372665152,25.19419981,195.61,195.55,26.81289981]
[1736372665341,25.19419981,195.61,195.55,1.6187]
[1736372666960,25.19419981,195.63,195.56,25.19419981]
[1736372667265,27.67419981,195.66,195.59,25.19419981]
[1736372667453,27.67419981,195.66,195.57,25.19419981]
[1736372667454,25.19419981,195.64,195.57,25.19419981]
[1736372667650,25.19419981,195.66,195.59,25.19419981]
[1736372667970,25.19419981,195.66,195.56,23.776884]
[1736372667971,25.19419981,195.67,195.6,25.19419981]
[1736372669566,25.19419981,195.69,195.62,25.19419981]
[1736372669769,25.19419981,195.68,195.61,25.19419981]
[1736372670170,25.19419981,195.69,195.62,25.19419981]
[1736372670381,25.19419981,195.69,195.63,25.19419981]
[1736372670676,25.19419981,195.72,195.65,26.76209981]
[1736372670856,25.19419981,195.72,195.66,23.776884]
[1736372671055,25.19419981,195.76,195.69,25.19419981]
[1736372671472,25.19419981,195.78,195.71,25.19419981]
[1736372672263,25.19419981,195.79,195.72,25.19419981]
[1736372672568,25.19419981,195.78,195.71,25.19419981]
[1736372673880,25.19419981,195.76,195.69,27.67419981]
[1736372674081,25.19419981,195.73,195.69,22.48]
[1736372674285,25.19419981,195.74,195.69,22.48]
[1736372674593,25.19419981,195.75,195.69,22.48]
[1736372675095,25.19419981,195.74,195.69,2.48]
[1736372675612,25.19419981,195.8,195.66,2.48]
[1736372675768,25.19419981,195.69,195.66,22.48]
[1736372676093,25.19419981,195.71,195.66,22.48]
[1736372676386,25.19419981,195.73,195.67,23.776884]
[1736372676597,25.19419981,195.76,195.7,23.776884]
[1736372676960,25.19419981,195.75,195.69,23.776884]
[1736372677392,25.19419981,195.74,195.69,23.776884]
[1736372678187,25.19419981,195.7,195.66,20.0]
[1736372678690,25.19419981,195.69,195.66,20.0]
[1736372678982,25.19419981,195.69,195.65,4.0479]
[1736372679173,25.19419981,195.66,195.65,1.5679]
[1736372679776,25.19419981,195.66,195.6,1.645]
[1736372679957,25.19419981,195.61,195.59,6.0916]
[1736372680160,25.19419981,195.6,195.55,1.5905]
[1736372680364,25.19419981,195.59,195.55,1.5905]
[1736372682479,25.19419981,195.6,195.55,1.5905]
[1736372682763,25.19419981,195.59,195.55,1.5905]
[1736372684406,25.19419981,195.6,195.55,1.5905]
[1736372684571,25.19419981,195.59,195.55,1.5905]
[1736372685197,25.19419981,195.59,195.56,23.776884]
[1736372686705,25.19419981,195.6,195.56,23.776884]
[1736372687493,25.19419981,195.59,195.56,23.776884]
[1736372687788,25.19419981,195.6,195.56,23.776884]
[1736372688387,25.19419981,195.62,195.56,48.97108381]
[1736372688566,25.19419981,195.62,195.56,23.776884]
[1736372688983,25.19419981,195.62,195.56,48.97108381]
[1736372689977,25.19419981,195.62,195.56,23.776884]
[1736372690589,25.19419981,195.59,195.57,20.0]
[1736372694789,25.19419981,195.59,195.55,1.5905]
[1736372695292,25.19419981,195.56,195.55,1.5905]
[1736372695469,25.19419981,195.56,195.5,1.5604]
[1736372695670,25.19419981,195.54,195.5,1.5604]
[1736372695877,25.19419981,195.55,195.5,26.75459981]
[1736372696097,25.19419981,195.56,195.5,26.75459981]
[1736372696593,25.19419981,195.58,195.51,48.97108381]
[1736372696992,25.19419981,195.56,195.51,23.776884]
[1736372697490,15.71906751,195.56,195.51,23.776884]
[1736372697900,15.71906751,195.57,195.51,39.49595151]
[1736372698191,15.71906751,195.57,195.51,23.776884]
[1736372699173,15.71906751,195.56,195.52,20.0]
[1736372699393,15.71906751,195.55,195.52,20.0]
[1736372700099,15.71906751,195.57,195.52,20.0]
[1736372700395,15.71906751,195.62,195.56,15.71906751]
[1736372700596,15.71906751,195.63,195.57,15.71906751]
[1736372700800,15.71906751,195.63,195.56,35.71906751]
[1736372701304,15.71906751,195.66,195.59,15.71906751]
[1736372701674,15.71906751,195.65,195.58,23.37966751]
[1736372702202,15.71906751,195.64,195.58,23.37966751]
[1736372702370,15.71906751,195.61,195.54,22.16686751]
[1736372702574,15.71906751,195.59,195.54,6.4478]
[1736372703300,15.71906751,195.6,195.54,6.4478]
[1736372704197,15.71906751,195.59,195.54,6.4478]
[1736372704397,15.71906751,195.56,195.53,1.5735]
[1736372704601,1.5045,195.65,195.49,6.5604]
[1736372704602,15.71906751,195.54,195.49,6.5604]
[1736372704976,15.71906751,195.53,195.49,6.5604]
[1736372705370,18.19906751,195.6,195.49,6.5604]
[1736372705371,15.71906751,195.52,195.49,6.5604]
[1736372705900,15.71906751,195.53,195.49,6.5604]
[1736372706808,15.71906751,195.51,195.49,6.5604]
[1736372707098,15.71906751,195.5,195.46,46.06]
[1736372707280,25.17873582,195.47,195.46,46.06]
[1736372708081,7.90754873,195.61,195.51,23.776884]
[1736372708309,25.17873582,195.59,195.52,25.17873582]
[1736372708480,25.17873582,195.6,195.53,25.17873582]
[1736372708891,25.17873582,195.61,195.54,25.17873582]
[1736372709097,25.17873582,195.6,195.53,25.17873582]
[1736372709305,25.17873582,195.59,195.52,33.39233582]
[1736372710485,25.17873582,195.55,195.48,25.17873582]
[1736372710685,25.17873582,195.53,195.47,8.2234]
[1736372711182,25.17873582,195.52,195.47,7.2234]
[1736372711411,27.65873582,195.6,195.46,46.06]
[1736372711412,25.17873582,195.5,195.46,46.06]
[1736372713406,25.17873582,195.49,195.46,46.06]
[1736372713600,25.17873582,195.51,195.46,46.06]
[1736372713810,25.17873582,195.53,195.46,71.23873582]
[1736372714199,25.17873582,195.52,195.46,46.06]
[1736372714493,25.17873582,195.51,195.46,46.06]
[1736372715009,25.17873582,195.53,195.49,20.0]
[1736372715216,25.17873582,195.55,195.49,20.0]
[1736372716209,25.17873582,195.54,195.49,20.0]
[1736372716603,25.17873582,195.55,195.49,20.0]
[1736372717319,25.17873582,195.56,195.49,45.17873582]
[1736372717496,25.17873582,195.54,195.49,20.0]
[1736372717690,25.17873582,195.54,195.5,20.0]
[1736372717896,25.17873582,195.56,195.49,25.17873582]
[1736372718103,25.17873582,195.57,195.5,25.17873582]
[1736372718305,25.17873582,195.56,195.5,20.0]
[1736372718801,25.17873582,195.58,195.51,25.17873582]
[1736372720203,20.0,195.59,195.47,25.17873582]
[1736372720490,25.17873582,195.52,195.45,44.26163582]
[1736372720694,25.17873582,195.52,195.48,20.0]
[1736372721309,25.17873582,195.53,195.48,20.0]
[1736372721522,25.17873582,195.55,195.48,45.17873582]
[1736372721723,89.20754873,195.69,195.54,25.17873582]
[1736372721901,89.20754873,195.69,195.51,1.6449]
[1736372721902,25.17873582,195.64,195.57,25.17873582]
[1736372722218,5.0,195.68,195.51,1.6449]
[1736372722517,20.0,195.62,195.51,1.6449]
[1736372723597,25.17873582,195.58,195.51,26.82363582]
[1736372724011,25.17873582,195.59,195.52,25.17873582]
[1736372724238,25.17873582,195.61,195.53,45.17873582]
[1736372724412,25.17873582,195.61,195.54,25.17873582]
[1736372724724,25.17873582,195.55,195.45,7.9093]
[1736372724922,25.17873582,195.55,195.38,51.1]
[1736372724923,23.776884,195.53,195.4,7.6217]
[1736372725296,20.0,195.5,195.4,7.6217]
[1736372726038,25.17873582,195.45,195.4,7.6217]
[1736372726341,25.17873582,195.44,195.4,7.6217]
[1736372727190,25.17873582,195.43,195.4,7.6217]
[1736372727391,25.17873582,195.43,195.38,46.1]
[1736372727631,25.17873582,195.39,195.35,7.6217]
[1736372727837,25.17873582,195.37,195.35,7.6217]
[1736372728112,25.17873582,195.38,195.35,7.6217]
[1736372728320,25.17873582,195.39,195.35,7.6217]
[1736372728818,25.17873582,195.38,195.35,7.6217]
[1736372729061,25.17873582,195.39,195.35,7.6217]
[1736372729542,25.17873582,195.4,195.35,7.6217]
[1736372730464,25.17873582,195.42,195.35,32.80043582]
[1736372730620,25.17873582,195.44,195.37,25.17873582]
[1736372730824,25.17873582,195.42,195.36,25.17873582]
[1736372731255,25.17873582,195.43,195.36,25.17873582]
[1736372731456,2.48,195.48,195.36,25.17873582]
[1736372731457,25.17873582,195.42,195.36,25.17873582]
[1736372731669,25.17873582,195.43,195.36,25.17873582]
[1736372731826,25.17873582,195.45,195.4,20.0]
[1736372732030,25.17873582,195.48,195.41,25.17873582]
[1736372732224,25.17873582,195.47,195.41,25.17873582]
[1736372732424,25.17873582,195.47,195.4,45.17873582]
[1736372732648,25.17873582,195.46,195.4,20.0]
[1736372732849,25.17873582,195.43,195.4,20.0]
[1736372733027,25.17873582,195.41,195.35,7.6217]
[1736372733236,25.17873582,195.4,195.35,7.6217]
[1736372733440,5.0,195.53,195.35,7.6217]
[1736372733441,12.9432,195.56,195.39,25.17873582]
[1736372733751,25.17873582,195.48,195.41,25.17873582]
[1736372733931,7.9432,195.56,195.41,25.17873582]
[1736372734130,25.17873582,195.48,195.41,25.17873582]
[1736372734631,25.17873582,195.5,195.43,25.17873582]
[1736372735044,25.17873582,195.5,195.38,12.7949]
[1736372735045,25.17873582,195.45,195.39,25.17873582]
[1736372735240,25.17873582,195.43,195.38,2.52]
[1736372735562,25.17873582,195.41,195.35,7.6217]
[1736372735847,25.17873582,195.39,195.35,7.6217]
[1736372736052,25.17873582,195.38,195.35,7.6217]
[1736372736226,25.17873582,195.36,195.3,32.73203582]
[1736372736533,25.17873582,195.35,195.3,7.5533]
[1736372736929,25.17873582,195.4,195.3,7.5533]
[1736372736930,25.17873582,195.36,195.3,32.73203582]
[1736372737128,25.17873582,195.45,195.38,20.0]
[1736372737334,25.17873582,195.44,195.38,20.0]
[1736372739147,90.3285,195.51,195.37,25.17873582]
[1736372739148,25.17873582,195.43,195.37,20.0]
[1736372739446,25.17873582,195.43,195.3,171.23203582]
[1736372739447,25.17873582,195.38,195.3,7.5533]
[1736372739745,25.17873582,195.37,195.33,20.0]
[1736372740242,25.17873582,195.37,195.3,32.73203582]
[1736372740243,25.17873582,195.35,195.3,7.5533]
[1736372741845,25.17873582,195.33,195.3,1.5272]
[1736372742427,25.17873582,195.32,195.26,31.20483582]
[1736372742766,25.17873582,195.29,195.26,6.0261]
[1736372742955,25.17873582,195.27,195.2,46.1]
[1736372743133,25.17873582,195.25,195.2,46.1]
[1736372743943,25.17873582,195.27,195.2,71.27873582]
[1736372744653,25.17873582,195.3,195.23,25.17873582]
[1736372744957,25.17873582,195.29,195.22,25.17873582]
[1736372745131,25.17873582,195.3,195.23,25.17873582]
[1736372745555,25.17873582,195.29,195.22,25.17873582]
[1736372746058,25.17873582,195.28,195.21,25.17873582]
[1736372746358,25.17873582,195.3,195.23,25.17873582]
[1736372746753,25.17873582,195.29,195.23,25.17873582]
[1736372747134,25.17873582,195.3,195.2,46.1]
[1736372747342,25.17873582,195.33,195.26,25.17873582]
[1736372747541,25.17873582,195.37,195.3,25.17873582]
[1736372747779,9.0485,195.4,195.21,23.776884]
[1736372747780,25.17873582,195.36,195.29,25.17873582]
[1736372748261,25.17873582,195.35,195.28,25.17873582]
[1736372748629,25.17873582,195.35,195.28,23.67873582]
[1736372748833,25.17873582,195.36,195.29,25.17873582]
[1736372749435,25.17873582,195.35,195.28,25.17873582]
[1736372750160,25.17873582,195.33,195.26,25.17873582]
[1736372750335,25.17873582,195.28,195.21,25.17873582]
[1736372751735,25.17873582,195.29,195.22,25.17873582]
[1736372752857,25.17873582,195.31,195.24,25.17873582]
[1736372753054,25.17873582,195.32,195.25,25.17873582]
[1736372753254,27.69873582,195.33,195.26,25.17873582]
[1736372753637,25.17873582,195.32,195.25,25.17873582]
[1736372753954,25.17873582,195.31,195.24,25.17873582]
[1736372754162,25.17873582,195.31,195.23,20.0]
[1736372754338,25.17873582,195.31,195.25,25.17873582]
[1736372754538,25.17873582,195.3,195.24,25.17873582]
[1736372754837,25.17873582,195.31,195.25,25.17873582]
[1736372755767,25.17873582,195.32,195.25,25.17873582]
[1736372755947,25.17873582,195.34,195.27,25.17873582]
[1736372756151,81.3,195.37,195.31,25.17873582]
[1736372756354,81.3,195.37,195.32,25.17873582]
[1736372756555,81.3,195.37,195.31,25.17873582]
[1736372757363,106.47873582,195.37,195.3,25.17873582]
[1736372757746,25.17873582,195.35,195.28,25.17873582]
[1736372757951,25.17873582,195.32,195.25,25.17873582]
[1736372758153,25.17873582,195.33,195.26,25.17873582]
[1736372759066,25.17873582,195.34,195.27,25.17873582]
[1736372759463,25.17873582,195.28,195.21,6.1568]
[1736372759655,25.17873582,195.27,195.21,6.1568]
[1736372760050,25.17873582,195.3,195.23,25.17873582]
[1736372760277,2.54,195.29,195.24,25.17873582]
[1736372761063,2.54,195.29,195.23,25.17873582]
[1736372761267,25.17873582,195.28,195.21,25.17873582]
[1736372761767,27.71873582,195.29,195.22,25.17873582]
[1736372762279,25.17873582,195.28,195.22,25.17873582]
[1736372762472,27.71873582,195.28,195.22,25.17873582]
[1736372762873,2.54,195.28,195.23,25.17873582]
[1736372763174,2.54,195.28,195.24,25.17873582]
[1736372763387,25.17873582,195.35,195.27,25.17873582]
[1736372763600,25.17873582,195.36,195.29,25.17873582]
[1736372763760,81.3,195.37,195.33,25.17873582]
[1736372764469,25.17873582,195.38,195.32,25.17873582]
[1736372764675,25.17873582,195.39,195.32,25.17873582]
[1736372765781,25.17873582,195.38,195.32,25.17873582]
[1736372765971,25.17873582,195.4,195.33,25.17873582]
[1736372766171,25.17873582,195.42,195.35,25.17873582]
[1736372767369,81.3,195.43,195.37,25.17873582]
[1736372767582,81.3,195.43,195.38,25.17873582]
[1736372767956,25.17873582,195.46,195.39,25.17873582]
[1736372768256,25.17873582,195.47,195.4,25.17873582]
[1736372768451,81.3,195.49,195.42,25.17873582]
[1736372768657,81.3,195.49,195.43,25.17873582]
[1736372768857,106.47873582,195.49,195.42,25.17873582]
[1736372770369,25.17873582,195.43,195.36,25.17873582]
[1736372770571,25.17873582,195.42,195.35,25.17873582]
[1736372771267,25.17873582,195.4,195.34,1.6402]
[1736372771468,25.17873582,195.41,195.34,26.81893582]
[1736372771770,25.17873582,195.4,195.33,25.17873582]
[1736372772390,25.17873582,195.38,195.31,25.17873582]
[1736372772596,25.17873582,195.39,195.32,25.17873582]
[1736372773084,25.17873582,195.38,195.31,25.17873582]
[1736372773977,25.17873582,195.37,195.31,25.17873582]
[1736372774896,25.17873582,195.35,195.29,1.5139]
[1736372775097,25.17873582,195.34,195.29,1.5139]
[1736372775290,25.17873582,195.33,195.25,1.5139]
[1736372775488,25.17873582,195.31,195.25,1.5139]
[1736372775682,25.17873582,195.32,195.25,26.69263582]
[1736372776089,25.17873582,195.36,195.29,25.17873582]
[1736372776411,25.17873582,195.4,195.27,2.52]
[1736372776712,25.17873582,195.41,195.34,25.17873582]
[1736372777201,25.17873582,195.4,195.33,25.17873582]
[1736372778091,25.17873582,195.39,195.32,25.17873582]
[1736372778802,25.17873582,195.37,195.31,25.17873582]
[1736372779596,25.17873582,195.37,195.3,25.17873582]
[1736372779789,25.17873582,195.36,195.29,25.17873582]
[1736372779993,25.17873582,195.36,195.28,25.17873582]
[1736372780294,25.17873582,195.36,195.29,25.17873582]
[1736372780500,25.17873582,195.35,195.28,25.17873582]
[1736372780679,25.17873582,195.33,195.26,25.17873582]
[1736372781197,25.17873582,195.33,195.27,25.17873582]
[1736372781807,25.17873582,195.31,195.25,1.5139]
[1736372781984,25.17873582,195.3,195.25,1.5139]
[1736372782306,25.17873582,195.31,195.25,1.5139]
[1736372782493,25.17873582,195.32,195.25,26.69263582]
[1736372783005,25.17873582,195.31,195.25,1.5139]
[1736372783302,25.17873582,195.35,195.28,25.17873582]
[1736372784092,25.17873582,195.34,195.27,25.17873582]
[1736372784486,25.17873582,195.33,195.26,25.17873582]
[1736372784701,25.17873582,195.34,195.27,25.17873582]
[1736372785283,25.17873582,195.36,195.29,25.17873582]
[1736372785498,81.3,195.39,195.33,25.17873582]
[1736372785814,81.3,195.39,195.34,25.17873582]
[1736372786895,81.3,195.44,195.38,25.17873582]
[1736372787091,81.3,195.44,195.39,25.17873582]
[1736372787292,106.47873582,195.44,195.37,25.17873582]
[1736372787906,81.3,195.44,195.4,25.17873582]
[1736372788119,25.17873582,195.48,195.41,25.17873582]
[1736372788323,106.47873582,195.49,195.42,25.17873582]
[1736372789929,25.17873582,195.48,195.41,25.17873582]
[1736372790426,25.17873582,195.5,195.43,25.17873582]
[1736372790595,25.17873582,195.52,195.44,25.17873582]
[1736372790989,25.17873582,195.51,195.44,25.17873582]
[1736372791532,25.17873582,195.53,195.46,25.17873582]
[1736372791919,25.17873582,195.52,195.45,25.17873582]
[1736372792113,25.17873582,195.52,195.44,25.17873582]
[1736372792639,25.17873582,195.52,195.45,25.17873582]
[1736372793136,25.17873582,195.53,195.46,25.17873582]
[1736372793298,25.17873582,195.54,195.46,25.17873582]
[1736372793632,25.17873582,195.52,195.45,1.5049]
[1736372793833,25.17873582,195.52,195.45,26.68363582]
[1736372794537,25.17873582,195.51,195.45,1.5049]
[1736372794706,25.17873582,195.5,195.45,1.5049]
[1736372795230,25.17873582,195.49,195.45,1.5049]
[1736372795414,25.17873582,195.5,195.45,1.5049]
[1736372796111,25.17873582,195.51,195.45,1.5049]
[1736372796511,25.17873582,195.5,195.45,1.5049]
[1736372797321,25.17873582,195.48,195.41,26.78143582]
[1736372797530,25.17873582,195.45,195.41,1.6027]
[1736372797837,25.17873582,195.49,195.42,25.17873582]
[1736372797997,25.17873582,195.47,195.41,1.6027]
[1736372799244,25.17873582,195.44,195.41,1.6027]
[1736372799406,25.17873582,195.42,195.41,1.6027]
[1736372800211,25.17873582,195.43,195.41,1.6027]
[1736372800631,25.17873582,195.42,195.41,1.6027]
[1736372800842,25.17873582,195.43,195.41,1.6027]
[1736372803844,25.17873582,195.47,195.41,1.6027]
[1736372804145,25.17873582,195.51,195.45,25.17873582]
[1736372804652,25.17873582,195.52,195.45,25.17873582]
[1736372805023,25.17873582,195.51,195.45,25.17873582]
[1736372805225,25.17873582,195.52,195.45,25.17873582]
[1736372805436,25.17873582,195.53,195.46,45.17873582]
[1736372807952,25.17873582,195.54,195.47,45.17873582]
[1736372809619,25.17873582,195.53,195.47,20.0]
[1736372810249,25.17873582,195.54,195.47,45.17873582]
[1736372810447,25.17873582,195.55,195.48,31.77863582]
[1736372810959,25.17873582,195.56,195.49,26.71543582]
[1736372811133,25.17873582,195.59,195.52,25.17873582]
[1736372811616,25.17873582,195.59,195.53,45.17873582]
[1736372812043,25.17873582,195.59,195.53,20.0]
[1736372813336,25.17873582,195.58,195.53,20.0]
[1736372813643,25.17873582,195.57,195.53,20.0]
[1736372814142,25.17873582,195.6,195.53,25.17873582]
[1736372814518,25.17873582,195.59,195.52,45.17873582]
[1736372815028,20.0,195.66,195.54,25.17873582]
[1736372815366,25.17873582,195.63,195.56,25.17873582]
[1736372815521,25.17873582,195.63,195.5,213.03081982]
[1736372815522,25.17873582,195.64,195.57,25.17873582]
[1736372815847,25.17873582,195.63,195.56,25.17873582]